bitfinex/quotes_BTCUSD_20240703
["timestamp","ask_amount","ask_price","bid_price","bid_amount"]
[1720020205534,0.00835,60440.0,60439.0,0.33520576]
[1720020206330,0.00835,60440.0,60439.0,0.33530576]
[1720020206751,0.31735,60440.0,60439.0,0.33530576]
[1720020207521,0.31765,60440.0,60439.0,0.33530576]
[1720020208106,0.31735,60440.0,60439.0,0.33530576]
[1720020208982,0.00835,60440.0,60439.0,0.33530576]
[1720020212664,0.00835,60440.0,60439.0,0.36530576]
[1720020212877,0.00835,60440.0,60439.0,1.16490576]
[1720020213079,0.00835,60440.0,60439.0,1.96637376]
[1720020213284,0.00835,60440.0,60439.0,2.26607376]
[1720020213641,0.00835,60440.0,60439.0,1.93516176]
[1720020213859,0.00835,60440.0,60439.0,2.26607376]
[1720020214388,0.00835,60440.0,60439.0,2.59698576]
[1720020214603,0.00835,60440.0,60439.0,2.26607376]
[1720020215326,0.00835,60440.0,60439.0,1.96637376]
[1720020215535,0.00835,60440.0,60439.0,1.95237376]
[1720020215849,0.00835,60440.0,60439.0,2.26607376]
[1720020216220,0.00835,60440.0,60439.0,2.58298576]
[1720020216400,0.00835,60440.0,60439.0,2.59698576]
[1720020216756,0.00835,60440.0,60439.0,2.58298576]
[1720020216962,0.00835,60440.0,60439.0,2.56898576]
[1720020217167,0.00835,60440.0,60439.0,2.25207376]
[1720020217592,0.00835,60440.0,60439.0,0.53720576]
[1720020218109,0.00835,60440.0,60439.0,0.55120576]
[1720020218311,0.00835,60440.0,60439.0,0.73920576]
[1720020218857,0.00835,60440.0,60439.0,0.72320576]
[1720020219175,0.00835,60440.0,60439.0,0.28060576]
[1720020219397,0.00835,60440.0,60439.0,0.31020576]
[1720020219606,0.00835,60440.0,60439.0,0.33530576]
[1720020219779,0.00835,60440.0,60439.0,0.30730576]
[1720020220315,0.00865,60440.0,60439.0,0.29460576]
[1720020220481,0.00865,60440.0,60439.0,0.33530576]
[1720020220681,0.00865,60440.0,60439.0,0.32130576]
[1720020220925,0.00835,60440.0,60439.0,0.32130576]
[1720020221124,0.00835,60440.0,60439.0,0.33530576]
[1720020222025,0.00835,60440.0,60439.0,0.32130576]
[1720020222224,0.00835,60440.0,60439.0,0.33530576]
[1720020222423,0.00835,60440.0,60439.0,0.36530576]
[1720020223789,0.00835,60440.0,60439.0,0.35130576]
[1720020224206,0.00835,60440.0,60439.0,0.36530576]
[1720020224637,0.00835,60440.0,60439.0,0.35130576]
[1720020225255,0.00845,60440.0,60439.0,0.35130576]
[1720020225458,0.00845,60440.0,60439.0,0.33530576]
[1720020225848,0.00845,60440.0,60439.0,0.32130576]
[1720020226080,0.00845,60440.0,60439.0,0.33530576]
[1720020226429,0.00845,60440.0,60439.0,0.32130576]
[1720020226837,0.00845,60440.0,60439.0,0.33530576]
[1720020227276,0.00845,60440.0,60439.0,0.32130576]
[1720020227675,0.00845,60440.0,60439.0,0.33530576]
[1720020228234,0.00845,60440.0,60439.0,0.36621876]
[1720020229542,0.00845,60440.0,60439.0,0.35221876]
[1720020230072,0.00845,60440.0,60439.0,0.32221876]
[1720020230322,0.00845,60440.0,60439.0,0.33621876]
[1720020231102,0.00845,60440.0,60439.0,0.36631876]
[1720020231523,0.00845,60440.0,60439.0,0.33631876]
[1720020234448,0.00845,60440.0,60439.0,0.36631876]
[1720020234649,0.00845,60440.0,60439.0,0.52331876]
[1720020234857,0.00845,60440.0,60439.0,0.71531876]
[1720020235239,0.00845,60440.0,60439.0,0.51461876]
[1720020239269,0.00845,60440.0,60439.0,0.48461876]
[1720020241183,0.00845,60440.0,60439.0,0.51461876]
[1720020246230,0.00845,60440.0,60439.0,1.84179876]
[1720020246433,0.00845,60440.0,60439.0,2.16449876]
[1720020246649,0.00845,60440.0,60439.0,2.68021076]
[1720020247435,0.00845,60440.0,60439.0,2.34929876]
[1720020247646,0.00845,60440.0,60439.0,2.28899876]
[1720020247848,0.00845,60440.0,60439.0,1.95808676]
[1720020248023,0.00845,60440.0,60439.0,2.25778676]
[1720020248624,0.00845,60440.0,60439.0,1.95808676]
[1720020249475,0.00845,60440.0,60439.0,1.62717476]
[1720020249681,0.00845,60440.0,60439.0,1.71868676]
[1720020250500,0.00845,60440.0,60439.0,2.01838676]
[1720020251062,0.00845,60440.0,60439.0,1.71868676]
[1720020251238,0.00845,60440.0,60439.0,1.22231876]
[1720020251444,0.00845,60440.0,60439.0,1.38777476]
[1720020251808,0.00845,60440.0,60439.0,1.71868676]
[1720020252013,0.00845,60440.0,60439.0,2.01838676]
[1720020252597,0.00845,60440.0,60439.0,1.71868676]
[1720020253437,0.00845,60440.0,60439.0,2.01838676]
[1720020253637,0.00845,60440.0,60439.0,1.71868676]
[1720020253837,0.00845,60440.0,60439.0,1.22231876]
[1720020254108,0.00845,60440.0,60439.0,1.38777476]
[1720020256776,0.00845,60440.0,60439.0,1.68747476]
[1720020257384,0.00845,60440.0,60439.0,1.38777476]
[1720020258224,0.00845,60440.0,60439.0,1.68747476]
[1720020258421,0.00845,60440.0,60439.0,1.38777476]
[1720020258829,0.00845,60440.0,60439.0,1.68747476]
[1720020259149,0.00845,60440.0,60439.0,1.38777476]
[1720020262442,0.02233395,60448.0,60447.0,0.11720696]
[1720020262659,0.02233395,60448.0,60447.0,0.30710576]
[1720020263602,0.1234,60449.0,60448.0,0.0407]
[1720020263813,0.1234,60449.0,60448.0,0.2009988]
[1720020265577,0.2175,60452.0,60451.0,0.14670696]
[1720020265696,0.2175,60452.0,60451.0,0.30700576]
[1720020267674,0.2175,60452.0,60451.0,0.32100576]
[1720020268795,0.2175,60452.0,60451.0,0.32090576]
[1720020269462,0.2175,60452.0,60451.0,0.33490576]
[1720020270832,0.2178,60452.0,60451.0,0.33490576]
[1720020271176,0.2175,60452.0,60451.0,0.33490576]
[1720020271725,0.2175,60452.0,60451.0,0.33480576]
[1720020273911,0.12354209,60455.0,60454.0,0.14650696]
[1720020274123,0.12354209,60455.0,60454.0,0.30680576]
[1720020274557,0.00024209,60455.0,60454.0,0.3101139]
[1720020274743,0.00024209,60455.0,60454.0,1.03461345]
[1720020274943,0.00024209,60455.0,60454.0,2.08305076]
[1720020275293,0.00024209,60455.0,60454.0,2.80835548]
[1720020275505,0.00024209,60455.0,60454.0,2.52788076]
[1720020275711,0.00024209,60455.0,60454.0,2.85871076]
[1720020275885,0.00024209,60455.0,60454.0,2.70228076]
[1720020276147,0.0121241,60456.0,60455.0,2.14086696]
[1720020276373,0.0121241,60456.0,60455.0,2.72931755]
[1720020277006,0.0121241,60456.0,60455.0,2.70451233]
[1720020277425,0.0121241,60456.0,60455.0,2.79250653]
[1720020277626,0.00834,60472.0,60460.0,0.97600696]
[1720020277831,0.00834,60472.0,60460.0,2.33460076]
[1720020278108,0.00834,60472.0,60471.0,0.98407496]
[1720020278320,0.00834,60472.0,60471.0,2.31456658]
[1720020278690,0.00834,60472.0,60471.0,2.64530358]
[1720020279220,0.00834,60472.0,60471.0,2.97604058]
[1720020279593,0.00834,60472.0,60471.0,3.10931058]
[1720020279801,0.0003,60480.0,60479.0,1.80263896]
[1720020279976,0.0003,60480.0,60479.0,2.32803776]
[1720020280174,0.0003,60480.0,60479.0,2.89553076]
[1720020281576,0.0003,60480.0,60479.0,2.90953076]
[1720020281796,0.0003,60480.0,60479.0,2.92353076]
[1720020282411,0.0003,60480.0,60479.0,2.95680076]
[1720020282808,0.0003,60480.0,60479.0,2.62610776]
[1720020283008,0.0003,60480.0,60479.0,1.22960576]
[1720020283212,0.0003,60480.0,60479.0,1.44330576]
[1720020283330,0.0003,60480.0,60479.0,1.67480758]
[1720020283534,0.0003,60480.0,60479.0,1.66080758]
[1720020283751,0.0003,60480.0,60479.0,1.70597042]
[1720020283970,0.0003,60480.0,60479.0,2.35036342]
[1720020284178,0.0003,60480.0,60479.0,3.01701942]
[1720020284380,0.0003,60480.0,60479.0,3.03101942]
[1720020284610,0.0003,60497.0,60496.0,0.17620696]
[1720020284785,0.0003,60497.0,60496.0,0.56961103]
[1720020285324,0.0003,60497.0,60496.0,0.86630576]
[1720020285736,0.0003,60497.0,60496.0,0.89630576]
[1720020286149,0.0003,60497.0,60496.0,0.86630576]
[1720020286649,0.0003,60497.0,60496.0,0.86620576]
[1720020287318,0.0003,60497.0,60496.0,0.30640576]
[1720020287522,0.0003,60497.0,60496.0,0.32040576]
[1720020287880,0.0003,60497.0,60496.0,0.30640576]
[1720020288071,0.0003,60497.0,60496.0,0.30971115]
[1720020288253,0.0003,60497.0,60496.0,0.36271115]
[1720020288464,0.0003,60497.0,60496.0,0.41286697]
[1720020288991,0.0003,60497.0,60496.0,1.10806697]
[1720020289194,0.0003,60497.0,60496.0,1.13606697]
[1720020289533,0.0003,60497.0,60496.0,0.95676697]
[1720020289710,0.0003,60497.0,60496.0,0.94276697]
[1720020290080,0.0003,60497.0,60496.0,0.95666697]
[1720020291059,0.0003,60497.0,60496.0,0.97066697]
[1720020291582,0.0003,60497.0,60496.0,0.94066697]
[1720020291782,0.0003,60497.0,60496.0,0.93736158]
[1720020292008,0.0003,60497.0,60496.0,0.63736158]
[1720020292610,0.0003,60497.0,60496.0,0.62336158]
[1720020293035,0.0003,60497.0,60496.0,0.63736158]
[1720020293251,0.0003,60497.0,60496.0,0.62326158]
[1720020294274,0.0003,60497.0,60496.0,0.28030576]
[1720020294275,0.0006,60497.0,60496.0,0.28030576]
[1720020294475,0.0006,60497.0,60496.0,0.33420576]
[1720020294716,0.0006,60497.0,60496.0,0.33430576]
[1720020295134,0.0006,60497.0,60496.0,0.32030576]
[1720020295670,0.0006,60497.0,60496.0,0.30630576]
[1720020295913,0.0006,60497.0,60496.0,0.30640576]
[1720020296111,0.0003,60497.0,60496.0,0.30731876]
[1720020296367,0.0003,60497.0,60496.0,0.32131876]
[1720020296588,0.00123,60497.0,60496.0,0.32131876]
[1720020296958,0.00153,60497.0,60496.0,0.32131876]
[1720020297320,0.00153,60497.0,60496.0,0.32141876]
[1720020297515,0.00153,60497.0,60496.0,0.29551876]
[1720020298059,0.00153,60497.0,60496.0,0.32141876]
[1720020298259,0.00123,60497.0,60496.0,0.32141876]
[1720020298492,0.00153,60497.0,60496.0,0.33541876]
[1720020299669,0.00123,60497.0,60496.0,0.33541876]
[1720020300202,0.00153,60497.0,60496.0,0.29551876]
[1720020300708,0.00153,60497.0,60496.0,0.29561876]
[1720020300995,0.08073,60497.0,60496.0,0.29561876]
[1720020301745,0.08073,60497.0,60496.0,0.33551876]
[1720020301945,0.08073,60497.0,60496.0,0.29561876]
[1720020302550,0.00123,60497.0,60496.0,0.33551876]
[1720020302896,0.00123,60497.0,60496.0,0.29561876]
[1720020303031,0.00153,60497.0,60496.0,0.29561876]
[1720020303447,0.00153,60497.0,60496.0,0.33551876]
[1720020303645,0.00153,60497.0,60496.0,0.29561876]
[1720020304089,0.00153,60497.0,60496.0,0.33551876]
[1720020306267,0.00123,60497.0,60496.0,0.33551876]
[1720020306442,0.00123,60497.0,60496.0,1.29051876]
[1720020306641,0.00123,60497.0,60496.0,1.34283015]
[1720020307260,0.00123,60497.0,60496.0,1.37067458]
[1720020307464,0.00123,60497.0,60496.0,1.50812013]
[1720020309271,0.00123,60497.0,60496.0,1.27132013]
[1720020309473,0.00123,60497.0,60496.0,1.10602013]
[1720020309651,0.00123,60497.0,60496.0,1.50812013]
[1720020310641,0.00123,60497.0,60496.0,1.53918763]
[1720020311111,0.00123,60497.0,60496.0,1.53918767]
[1720020312472,0.00123,60497.0,60496.0,1.86978767]
[1720020313603,0.00123,60497.0,60496.0,2.83248767]
[1720020313805,0.00123,60497.0,60496.0,2.83248266]
[1720020314210,0.00123,60497.0,60496.0,2.88157135]
[1720020314424,0.00123,60497.0,60496.0,2.83248266]
[1720020314615,0.00123,60497.0,60496.0,2.90611569]
[1720020314839,0.00123,60497.0,60496.0,3.23671569]
[1720020315403,0.00123,60497.0,60496.0,3.84237167]
[1720020315601,0.00123,60497.0,60496.0,3.8331011]
[1720020316462,0.00123,60497.0,60496.0,3.96636717]
[1720020316889,0.00123,60497.0,60496.0,3.63687177]
[1720020317091,0.00123,60497.0,60496.0,3.98041167]
[1720020317290,0.00123,60497.0,60496.0,3.96641167]
[1720020317490,0.00123,60497.0,60496.0,3.18875276]
[1720020317774,0.00123,60497.0,60496.0,3.16948276]
[1720020317894,0.00123,60497.0,60496.0,2.63275882]
[1720020318913,0.00123,60497.0,60496.0,2.61875882]
[1720020319114,0.00123,60497.0,60496.0,1.09305882]
[1720020319314,0.00123,60497.0,60496.0,0.54200406]
[1720020319512,0.00123,60497.0,60496.0,0.33086025]
[1720020319714,0.00123,60497.0,60496.0,0.28161876]
[1720020319931,0.00153,60497.0,60496.0,0.28161876]
[1720020320548,0.00153,60497.0,60496.0,0.26761876]
[1720020320851,0.03346674,60497.0,60496.0,0.12131996]
[1720020321097,0.03346674,60497.0,60486.0,0.12940974]
[1720020321098,0.1201,60487.0,60486.0,0.12940974]
[1720020321300,0.1201,60487.0,60486.0,0.24045462]
[1720020321453,0.12,60487.0,60486.0,0.24045462]
[1720020322169,0.14442259,60487.0,60486.0,0.24045462]
[1720020322998,0.14422259,60487.0,60486.0,0.28035462]
[1720020323176,0.1198,60487.0,60486.0,0.28035462]
[1720020324205,0.12,60487.0,60486.0,0.28035462]
[1720020324525,0.12,60487.0,60486.0,0.24045462]
[1720020325649,0.47832792,60505.0,60488.0,0.05847208]
[1720020325855,0.2368,60500.0,60489.0,0.1602988]
[1720020326059,0.12456223,60499.0,60490.0,0.05847208]
[1720020326267,0.1,60499.0,60489.0,0.1602988]
[1720020326485,0.2368,60494.0,60486.0,0.0141]
[1720020326706,0.02469047,60493.0,60486.0,0.0141]
[1720020326913,0.12469047,60493.0,60486.0,0.0141]
[1720020327307,0.12469047,60493.0,60486.0,0.0001]
[1720020327308,0.02469047,60492.0,60486.0,0.0001]
[1720020328761,0.02469047,60492.0,60486.0,0.0002]
[1720020329245,0.02469047,60492.0,60490.0,0.001]
[1720020329727,0.0256245,60491.0,60486.0,0.0002]
[1720020329949,0.1,60493.0,60486.0,0.0002]
[1720020329950,0.0256245,60490.0,60486.0,0.0022]
[1720020330177,0.1,60493.0,60487.0,0.08015582]
[1720020330178,0.0256245,60489.0,60487.0,0.08015582]
[1720020330405,0.0256245,60488.0,60487.0,0.08015582]
[1720020330633,0.0256245,60492.0,60487.0,0.08015582]
[1720020331587,0.0256245,60492.0,60487.0,0.08415582]
[1720020331832,0.0256245,60492.0,60487.0,0.004]
[1720020332056,0.06348179,60491.0,60487.0,0.004]
[1720020332281,0.1,60493.0,60486.0,0.0002]
[1720020332282,0.0256245,60490.0,60486.0,0.0002]
[1720020332503,0.1,60493.0,60486.0,0.0002]
[1720020332504,0.0256245,60489.0,60486.0,0.0002]
[1720020332735,0.0256245,60488.0,60486.0,0.0002]
[1720020332979,0.02540194,60488.0,60486.0,0.0002]
[1720020333243,0.02540194,60487.0,60486.0,0.0002]
[1720020333988,0.02550194,60487.0,60486.0,0.0012]
[1720020334478,0.02550194,60487.0,60486.0,0.0002]
[1720020334928,0.02550194,60487.0,60486.0,0.0072]
[1720020336198,0.02550194,60487.0,60486.0,0.0162]
[1720020336199,0.02442366,60487.0,60486.0,0.0162]
[1720020336468,0.02442366,60487.0,60472.0,0.05847208]
[1720020336469,0.24152792,60486.0,60472.0,0.05847208]
[1720020336709,0.18688648,60487.0,60471.0,0.08015582]
[1720020336710,0.2368,60481.0,60471.0,0.08015582]
[1720020336947,0.02432849,60480.0,60471.0,0.08015582]
[1720020337199,0.12432849,60480.0,60471.0,0.08015582]
[1720020337412,0.02432849,60479.0,60466.0,0.05847208]
[1720020337649,0.02432849,60478.0,60467.0,0.1602988]
[1720020337885,0.02432849,60477.0,60472.0,0.017]
[1720020338121,0.02432849,60476.0,60472.0,0.017]
[1720020338368,0.34152792,60480.0,60472.0,0.017]
[1720020338369,0.02432849,60475.0,60472.0,0.017]
[1720020338589,0.02432849,60474.0,60473.0,0.08015582]
[1720020339578,0.1,60480.0,60471.0,0.014]
[1720020339847,0.0234716,60479.0,60471.0,0.028]
[1720020340094,0.0001,60477.0,60471.0,0.014]
[1720020340643,0.0234716,60479.0,60471.0,0.014]
[1720020340644,0.2368,60476.0,60471.0,0.014]
[1720020340891,0.2368,60476.0,60473.0,0.014]
[1720020340892,0.1,60475.0,60473.0,0.014]
[1720020341362,0.001,60474.0,60473.0,0.014]
[1720020341800,0.1,60475.0,60460.0,0.05847208]
[1720020342010,0.1,60475.0,60461.0,0.05847208]
[1720020342215,0.1,60475.0,60471.0,0.01]
[1720020342531,0.1,60475.0,60472.0,0.0001]
[1720020343287,0.1,60475.0,60473.0,0.08015582]
[1720020343463,0.1,60475.0,60473.0,0.1386279]
[1720020343663,0.0001,60477.0,60473.0,0.08015582]
[1720020344043,0.0001,60477.0,60472.0,0.0002]
[1720020344478,0.0001,60477.0,60473.0,0.05847208]
[1720020344682,0.0001,60477.0,60472.0,0.05967208]
[1720020346140,0.0001,60477.0,60476.0,0.11777208]
[1720020346248,0.0001,60477.0,60476.0,0.63517088]
[1720020346458,0.0001,60477.0,60476.0,1.03732488]
[1720020346876,0.0021,60477.0,60476.0,1.36803388]
[1720020347947,0.0021,60477.0,60476.0,1.38203388]
[1720020348104,0.0021,60477.0,60476.0,1.35203388]
[1720020348510,0.0001,60477.0,60476.0,1.35203388]
[1720020349264,0.0011,60477.0,60476.0,1.36603388]
[1720020349759,0.0001,60477.0,60476.0,1.35203388]
[1720020349959,0.0001,60477.0,60476.0,1.36603388]
[1720020349960,0.0011,60477.0,60476.0,1.36603388]
[1720020350516,0.0011,60477.0,60476.0,1.35203388]
[1720020350672,0.0011,60477.0,60476.0,1.03532488]
[1720020351113,0.0011,60477.0,60476.0,1.38203388]
[1720020351295,0.0011,60477.0,60476.0,1.35203388]
[1720020351495,0.0011,60477.0,60476.0,1.39603388]
[1720020351933,0.2662672,60508.0,60477.0,0.1434]
[1720020351934,0.2368,60508.0,60477.0,0.1434]
[1720020352144,0.00835,60513.0,60476.0,0.57287088]
[1720020352145,0.00835,60513.0,60508.0,0.1434]
[1720020352146,0.04262445,60511.0,60508.0,0.1434]
[1720020352348,0.00835,60513.0,60512.0,0.11777208]
[1720020352549,0.00835,60513.0,60512.0,0.28633292]
[1720020352697,0.00835,60513.0,60512.0,0.12107692]
[1720020352912,0.00835,60513.0,60512.0,0.28633292]
[1720020353112,0.00835,60513.0,60512.0,0.44663172]
[1720020353319,0.00835,60513.0,60512.0,0.27807088]
[1720020354672,0.00835,60513.0,60512.0,0.27817088]
[1720020355013,0.00835,60513.0,60512.0,0.27827088]
[1720020355215,0.00835,60513.0,60512.0,0.27837088]
[1720020355654,0.00835,60513.0,60512.0,0.29237088]
[1720020355869,0.00845,60513.0,60512.0,0.29247088]
[1720020356287,0.00845,60513.0,60512.0,0.27847088]
[1720020356706,0.00845,60513.0,60512.0,0.29247088]
[1720020357075,0.00845,60513.0,60512.0,0.27847088]
[1720020357442,0.00845,60513.0,60512.0,0.29247088]
[1720020358268,0.00845,60513.0,60512.0,0.45772688]
[1720020358712,0.00845,60513.0,60512.0,0.29247088]
[1720020359324,0.00845,60513.0,60512.0,0.27847088]
[1720020359551,0.00845,60513.0,60512.0,0.29247088]
[1720020359705,0.00845,60513.0,60512.0,0.45772688]
[1720020359911,0.00845,60513.0,60512.0,0.30647088]
[1720020360110,0.00845,60513.0,60512.0,0.29247088]
[1720020360920,0.00845,60513.0,60512.0,0.45772688]
[1720020361219,0.00845,60513.0,60512.0,1.14875088]
[1720020361562,0.00845,60513.0,60512.0,1.11875088]
[1720020362262,0.00845,60513.0,60512.0,1.14875088]
[1720020362619,0.00845,60513.0,60512.0,1.16275088]
[1720020363041,0.00845,60513.0,60512.0,1.46275088]
[1720020363363,0.00845,60513.0,60512.0,1.44875088]
[1720020363663,0.00845,60513.0,60512.0,1.46275088]
[1720020364008,0.00845,60513.0,60512.0,1.44875088]
[1720020364591,0.00845,60513.0,60512.0,1.16275088]
[1720020365257,0.00845,60513.0,60512.0,1.44875088]
[1720020365472,0.00845,60513.0,60512.0,1.46275088]
[1720020365976,0.00845,60513.0,60512.0,1.14875088]
[1720020366413,0.00845,60513.0,60512.0,1.16275088]
[1720020366614,0.00845,60513.0,60512.0,1.46275088]
[1720020366901,0.00845,60513.0,60512.0,1.65785611]
[1720020367468,0.00845,60513.0,60512.0,1.81345611]
[1720020367669,0.00845,60513.0,60512.0,1.82745611]
[1720020367869,0.00801144,60513.0,60512.0,1.82745611]
[1720020368081,0.00801144,60513.0,60512.0,2.15796811]
[1720020368278,0.00801144,60513.0,60512.0,1.82745611]
[1720020368488,0.00801144,60513.0,60512.0,1.81345611]
[1720020368851,0.00801144,60513.0,60512.0,1.82745611]
[1720020368964,0.00801144,60513.0,60512.0,1.81345611]
[1720020369165,0.00801144,60513.0,60512.0,1.82745611]
[1720020369648,0.00801144,60513.0,60512.0,1.51345611]
[1720020369989,0.00801144,60513.0,60512.0,1.50661476]
[1720020370191,0.00801144,60513.0,60512.0,1.52061476]
[1720020371212,0.00801144,60513.0,60512.0,1.80661476]
[1720020371412,0.00801144,60513.0,60512.0,1.50661476]
[1720020371614,0.00801144,60513.0,60512.0,1.52061476]
[1720020372006,0.00801144,60513.0,60512.0,0.21780403]
[1720020372207,0.00801144,60513.0,60512.0,0.0284]
[1720020372452,0.00801144,60513.0,60512.0,0.1746988]
[1720020372669,0.00801144,60513.0,60512.0,0.0284]
[1720020372867,0.01841144,60513.0,60512.0,0.0284]
[1720020373065,0.01841144,60513.0,60493.0,0.08015582]
[1720020373066,0.24481144,60513.0,60498.0,0.05847208]
[1720020373296,0.24481144,60513.0,60499.0,0.64123374]
[1720020373297,0.0245,60512.0,60499.0,0.64123374]
[1720020373447,0.1245,60512.0,60503.0,0.05847208]
[1720020374125,0.1245,60512.0,60499.0,0.1602988]
[1720020374352,0.1245,60512.0,60493.0,0.11015582]
[1720020374353,0.1245,60512.0,60494.0,0.05847208]
[1720020374354,0.2368,60508.0,60494.0,0.05847208]
[1720020374552,0.2368,60508.0,60495.0,0.21877088]
[1720020374553,0.1245,60507.0,60495.0,0.21877088]
[1720020376001,0.1245,60507.0,60501.0,0.05847208]
[1720020376217,0.1245,60507.0,60502.0,0.05847208]
[1720020376218,0.0245,60507.0,60502.0,0.05847208]
[1720020376341,0.1,60506.0,60504.0,0.05847208]
[1720020376539,0.1,60506.0,60501.0,0.1602988]
[1720020376540,0.1,60506.0,60501.0,0.21877088]
[1720020376745,0.1,60506.0,60494.0,0.05847208]
[1720020377080,0.2368,60497.0,60495.0,0.001]
[1720020377281,0.1104,60496.0,60495.0,0.001]
[1720020377486,0.1245,60496.0,60495.0,0.001]
[1720020377890,0.4206,60496.0,60495.0,0.001]
[1720020378301,0.4206,60496.0,60479.0,0.08015582]
[1720020378302,0.0103,60493.0,60479.0,0.08015582]
[1720020378532,0.0141,60488.0,60479.0,0.08015582]
[1720020378743,0.1141,60488.0,60479.0,0.08015582]
[1720020378945,0.114,60488.0,60479.0,0.08015582]
[1720020379290,0.1139,60488.0,60479.0,0.08015582]
[1720020380068,0.1139,60488.0,60479.0,0.09415582]
[1720020380280,0.24152792,60487.0,60479.0,0.09415582]
[1720020380496,0.1,60486.0,60479.0,0.08015582]
[1720020381315,0.00199312,60485.0,60479.0,0.08015582]
[1720020381527,0.0103,60484.0,60479.0,0.08015582]
[1720020384135,0.0103,60484.0,60479.0,0.08115582]
[1720020384542,0.0103,60484.0,60479.0,0.08015582]
[1720020386059,0.0103,60484.0,60477.0,0.000924]
[1720020386060,0.0132,60484.0,60477.0,0.000924]
[1720020388576,0.0036,60481.0,60477.0,0.000924]
[1720020388781,0.1036,60481.0,60477.0,0.000924]
[1720020388936,0.00205998,60480.0,60477.0,0.000924]
[1720020389931,0.1036,60481.0,60477.0,0.000924]
[1720020390485,0.1036,60481.0,60478.0,0.08015582]
[1720020390633,0.0036,60481.0,60478.0,0.08015582]
[1720020391437,0.0036,60481.0,60479.0,0.0001]
[1720020392061,0.0036,60481.0,60479.0,0.0011]
[1720020392497,0.0036,60481.0,60479.0,0.0001]
[1720020392699,0.0036,60481.0,60479.0,0.0031]
[1720020393962,0.0036,60481.0,60479.0,0.0001]
[1720020395879,0.14376981,60486.0,60479.0,0.0001]
[1720020396208,0.34142003,60486.0,60479.0,0.0031]
[1720020397018,0.34142003,60486.0,60479.0,0.0001]
[1720020397234,0.002,60484.0,60481.0,0.08015582]
[1720020397605,0.04135142,60486.0,60481.0,0.08015582]
[1720020397965,0.04335142,60486.0,60481.0,0.08015582]
[1720020398604,0.04135142,60486.0,60481.0,0.08015582]
[1720020399001,0.04135142,60486.0,60481.0,0.08115582]
[1720020399405,0.04135142,60486.0,60481.0,0.001]
[1720020399607,0.2369,60485.0,60481.0,0.001]
[1720020399767,0.1,60484.0,60481.0,0.001]
[1720020399963,0.101,60484.0,60481.0,0.001]
[1720020400377,0.1,60484.0,60481.0,0.001]
[1720020400603,0.0103156,60483.0,60481.0,0.001]
[1720020400804,0.0075156,60483.0,60481.0,0.001]
[1720020401650,0.1,60484.0,60479.0,0.0001]
[1720020401874,0.1,60484.0,60480.0,0.08015582]
[1720020402029,0.003,60486.0,60480.0,0.08015582]
[1720020402384,0.003,60486.0,60481.0,0.000924]
[1720020402569,0.001,60486.0,60481.0,0.000924]
[1720020403156,0.03747868,60489.0,60481.0,0.000924]
[1720020403337,0.1,60490.0,60481.0,0.000924]
[1720020403546,0.05091645,60489.0,60481.0,0.000924]
[1720020403761,0.001,60484.0,60481.0,0.000924]
[1720020404328,0.2602988,60490.0,60481.0,0.000924]
[1720020404524,0.05090358,60489.0,60481.0,0.000924]
[1720020404740,0.05090358,60488.0,60481.0,0.001924]
[1720020404955,0.1,60489.0,60481.0,0.000924]
[1720020405261,0.03735194,60490.0,60481.0,0.000924]
[1720020405461,0.0508811,60489.0,60481.0,0.000924]
[1720020405579,0.2369,60485.0,60481.0,0.000924]
[1720020405800,0.1508811,60484.0,60481.0,0.000924]
[1720020406158,0.0508811,60483.0,60481.0,0.000924]
[1720020407115,0.0508811,60483.0,60481.0,0.001924]
[1720020408171,0.1,60484.0,60481.0,0.001924]
[1720020408414,0.06177605,60483.0,60481.0,0.001924]
[1720020408672,0.06177605,60482.0,60481.0,0.001924]
[1720020409158,0.06177605,60483.0,60481.0,0.001924]
[1720020409379,0.06177605,60482.0,60481.0,0.000924]
[1720020409638,0.06177605,60483.0,60481.0,0.000924]
[1720020410102,0.06177605,60483.0,60482.0,0.08015582]
[1720020410564,0.06177605,60488.0,60482.0,0.08015582]
[1720020410852,0.06177605,60487.0,60482.0,0.08015582]
[1720020411064,0.1,60489.0,60482.0,0.08015582]
[1720020411065,0.0854266,60486.0,60482.0,0.08015582]
[1720020411297,0.0854266,60485.0,60482.0,0.08015582]
[1720020411527,0.06181845,60484.0,60482.0,0.08015582]
[1720020411771,0.08546799,60483.0,60482.0,0.08015582]
[1720020412043,0.06181167,60483.0,60482.0,0.08015582]
[1720020413268,0.06181167,60483.0,60481.0,0.000924]
[1720020413511,0.1375828,60489.0,60481.0,0.000924]
[1720020413512,0.08545465,60482.0,60481.0,0.000924]
[1720020413729,0.06181167,60482.0,60481.0,0.000924]
[1720020413929,0.08545465,60482.0,60481.0,0.000924]
[1720020414598,0.32235465,60482.0,60481.0,0.000924]
[1720020414905,0.42226043,60482.0,60481.0,0.000924]
[1720020415913,0.18536043,60482.0,60481.0,0.000924]
[1720020416126,0.08536043,60482.0,60481.0,0.000924]
[1720020416336,0.1,60488.0,60481.0,0.002924]
[1720020416507,0.0375828,60489.0,60481.0,0.002924]
[1720020416508,0.08550426,60482.0,60481.0,0.002924]
[1720020416677,0.06183663,60482.0,60481.0,0.148724]
[1720020416872,0.06183663,60482.0,60481.0,0.331024]
[1720020417115,0.02366763,60482.0,60481.0,0.331024]
[1720020417361,0.08550426,60484.0,60481.0,0.331024]
[1720020417487,0.08550426,60483.0,60481.0,0.332024]
[1720020417694,0.08550426,60482.0,60481.0,0.332024]
[1720020417908,0.0848094,60482.0,60481.0,0.330024]
[1720020418105,0.0848094,60488.0,60481.0,0.330024]
[1720020418325,0.001,60482.0,60481.0,0.329024]
[1720020418524,0.0848094,60482.0,60481.0,0.329024]
[1720020418726,0.0848094,60482.0,60481.0,0.332024]
[1720020418727,0.02331292,60482.0,60481.0,0.332024]
[1720020418928,0.02331292,60482.0,60481.0,0.336024]
[1720020419250,0.02331292,60482.0,60481.0,0.333024]
[1720020419393,0.07488351,60482.0,60481.0,0.329024]
[1720020419591,0.07488351,60482.0,60481.0,0.331024]
[1720020420717,0.1,60489.0,60481.0,0.331024]
[1720020421091,0.1,60489.0,60481.0,0.002924]